[Event "*** Titled Tuesday Blitz"]
[Site "Chess.com"]
[Date "2020.04.28"]
[Round "7"]
[White "Rafael_Ventura"]
[Black "vovachesss"]
[Result "0-1"]
[WhiteElo "2286"]
[BlackElo "2550"]
[TimeControl "180+1"]
[EndTime "11:17:13 PDT"]
[Termination "vovachesss won by resignation"]

1. e4 {[%clk 0:03:00.9]} 1... e5 {[%clk 0:02:55.1]} 2. Nf3 {[%clk 0:03:00.6]}
2... d5 {[%clk 0:02:55.7]} 3. Nc3 {[%clk 0:02:56.3]} 3... dxe4 {[%clk
0:02:55.7]} 4. Nxe4 {[%clk 0:02:55.9]} 4... Nf6 {[%clk 0:02:56.6]} 5. Nxf6+
{[%clk 0:02:46.6]} 5... Qxf6 {[%clk 0:02:57.5]} 6. Qe2 {[%clk 0:02:47.1]} 6...
Bd6 {[%clk 0:02:54.8]} 7. d4 {[%clk 0:02:44.8]} 7... Nc6 {[%clk 0:02:49.9]} 8.
dxe5 {[%clk 0:02:37]} 8... Nxe5 {[%clk 0:02:49.9]} 9. Nxe5 {[%clk 0:02:37]} 9...
Qxe5 {[%clk 0:02:50.3]} 10. Qxe5+ {[%clk 0:02:36.2]} 10... Bxe5 {[%clk 0:02:51]}
11. c3 {[%clk 0:02:36.1]} 11... Bf5 {[%clk 0:02:49]} 12. Be3 {[%clk 0:02:31.9]}
12... O-O-O {[%clk 0:02:48.9]} 13. Bc4 {[%clk 0:01:59.5]} 13... Bg6 {[%clk
0:02:47.2]} 14. Rd1 {[%clk 0:01:56.3]} 14... a6 {[%clk 0:02:35.8]} 15. Ke2
{[%clk 0:01:48.9]} 15... b5 {[%clk 0:02:29.2]} 16. Bd3 {[%clk 0:01:49.4]} 16...
Kb7 {[%clk 0:02:23.9]} 17. Bxg6 {[%clk 0:01:48.5]} 17... hxg6 {[%clk 0:02:23.5]}
18. h3 {[%clk 0:01:47.7]} 18... Kc6 {[%clk 0:02:23.3]} 19. f4 {[%clk 0:01:36.5]}
19... Bf6 {[%clk 0:02:20.5]} 20. Kf3 {[%clk 0:01:37.1]} 20... Rhe8 {[%clk
0:02:17.7]} 21. g4 {[%clk 0:01:32.2]} 21... a5 {[%clk 0:02:11.8]} 22. Rxd8
{[%clk 0:01:21.8]} 22... Rxd8 {[%clk 0:02:11.8]} 23. Ke2 {[%clk 0:01:22.5]}
23... a4 {[%clk 0:02:09.7]} 24. Bd2 {[%clk 0:01:09]} 24... Kd5 {[%clk
0:02:05.5]} 25. Kd3 {[%clk 0:01:01]} 25... c5 {[%clk 0:02:05.4]} 26. Re1 {[%clk
0:00:59.3]} 26... c4+ {[%clk 0:02:02.7]} 27. Kc2 {[%clk 0:00:59.4]} 27... Rd6
{[%clk 0:01:52.4]} 28. g5 {[%clk 0:00:58.7]} 28... Bd8 {[%clk 0:01:49.6]} 29.
Re5+ {[%clk 0:00:58.8]} 29... Kc6 {[%clk 0:01:49.4]} 30. Be3 {[%clk 0:00:59.5]}
30... Re6 {[%clk 0:01:38.7]} 31. Rxe6+ {[%clk 0:00:57.4]} 31... fxe6 {[%clk
0:01:38.9]} 32. Bd4 {[%clk 0:00:58]} 32... Bc7 {[%clk 0:01:36.5]} 33. Bxg7
{[%clk 0:00:47.2]} 33... Bxf4 {[%clk 0:01:37]} 34. Bf6 {[%clk 0:00:43.6]} 34...
Kd5 {[%clk 0:01:34.2]} 35. h4 {[%clk 0:00:38.8]} 35... e5 {[%clk 0:01:22.8]} 36.
h5 {[%clk 0:00:38.2]} 36... gxh5 {[%clk 0:01:22.8]} 37. g6 {[%clk 0:00:38.4]}
37... Ke6 {[%clk 0:01:23.5]} 38. g7 {[%clk 0:00:37.7]} 38... Kf7 {[%clk
0:01:23.9]} 39. b3 {[%clk 0:00:36.5]} 39... e4 {[%clk 0:01:23.4]} 40. bxc4
{[%clk 0:00:35.6]} 40... bxc4 {[%clk 0:01:23.9]} 41. Kd1 {[%clk 0:00:35.9]}
41... Bh6 {[%clk 0:01:23.7]} 42. Ke2 {[%clk 0:00:28.5]} 42... Bxg7 {[%clk
0:01:23.8]} 43. Bxg7 {[%clk 0:00:27.1]} 43... Kxg7 {[%clk 0:01:23.3]} 44. Ke3
{[%clk 0:00:27.7]} 44... Kg6 {[%clk 0:01:21.4]} 45. Kxe4 {[%clk 0:00:28.6]}
45... Kg5 {[%clk 0:01:22.3]} 0-1

[Event "*** Titled Tuesday Blitz"]
[Site "Chess.com"]
[Date "2020.04.28"]
[Round "7"]
[White "Bastiandash"]
[Black "fidezivkovic"]
[Result "0-1"]
[WhiteElo "2016"]
[BlackElo "2304"]
[TimeControl "180+1"]
[EndTime "11:17:13 PDT"]
[Termination "fidezivkovic won by resignation"]

1. Nf3 {[%clk 0:03:00.9]} 1... d5 {[%clk 0:02:57.7]} 2. b3 {[%clk 0:03:00]} 2...
Nf6 {[%clk 0:02:56.3]} 3. Bb2 {[%clk 0:03:00.9]} 3... Bf5 {[%clk 0:02:56.2]} 4.
e3 {[%clk 0:03:01.8]} 4... e6 {[%clk 0:02:55.6]} 5. d3 {[%clk 0:02:55.5]} 5...
h6 {[%clk 0:02:54.4]} 6. g3 {[%clk 0:02:55.2]} 6... Be7 {[%clk 0:02:49.5]} 7.
Bg2 {[%clk 0:02:55.3]} 7... O-O {[%clk 0:02:50.4]} 8. O-O {[%clk 0:02:55.4]}
8... c5 {[%clk 0:02:49.2]} 9. Nbd2 {[%clk 0:02:55.4]} 9... Nc6 {[%clk
0:02:48.4]} 10. Qe2 {[%clk 0:02:55.7]} 10... Bh7 {[%clk 0:02:34.1]} 11. Ne5
{[%clk 0:02:47]} 11... Nxe5 {[%clk 0:02:31.8]} 12. Bxe5 {[%clk 0:02:47.9]} 12...
Nd7 {[%clk 0:02:30.1]} 13. Bb2 {[%clk 0:02:46.3]} 13... Bf6 {[%clk 0:02:29.3]}
14. Bxf6 {[%clk 0:02:43.6]} 14... Qxf6 {[%clk 0:02:28.4]} 15. e4 {[%clk
0:02:37.2]} 15... Nb6 {[%clk 0:02:14.6]} 16. a4 {[%clk 0:02:32.8]} 16... a5
{[%clk 0:02:13.2]} 17. e5 {[%clk 0:02:22.3]} 17... Qe7 {[%clk 0:02:10.8]} 18. f4
{[%clk 0:02:22.5]} 18... Rac8 {[%clk 0:02:05.5]} 19. Rab1 {[%clk 0:01:47.7]}
19... Rfd8 {[%clk 0:01:50.4]} 20. g4 {[%clk 0:01:34.6]} 20... f6 {[%clk
0:01:38]} 21. f5 {[%clk 0:01:02.8]} 21... exf5 {[%clk 0:01:36.1]} 22. gxf5
{[%clk 0:00:47.2]} 22... Qxe5 {[%clk 0:01:35.1]} 23. Qh5 {[%clk 0:00:40.3]}
23... Re8 {[%clk 0:01:21.6]} 24. Rbe1 {[%clk 0:00:25.5]} 24... Qxe1 {[%clk
0:01:19.8]} 25. Rxe1 {[%clk 0:00:26.4]} 25... Rxe1+ {[%clk 0:01:19]} 26. Kf2
{[%clk 0:00:25.7]} 26... Rce8 {[%clk 0:01:17]} 27. Bf3 {[%clk 0:00:22.5]} 27...
R8e5 {[%clk 0:01:09.3]} 28. Bg4 {[%clk 0:00:20.2]} 28... Rc1 {[%clk 0:01:07]}
29. Bd1 {[%clk 0:00:19]} 29... Rxf5+ {[%clk 0:01:04.2]} 0-1

[Event "*** Titled Tuesday Blitz"]
[Site "Chess.com"]
[Date "2020.04.28"]
[Round "7"]
[White "Khayala13"]
[Black "Blagorod"]
[Result "1-0"]
[WhiteElo "2332"]
[BlackElo "2143"]
[TimeControl "180+1"]
[EndTime "11:17:15 PDT"]
[Termination "Khayala13 won by resignation"]

1. e4 {[%clk 0:03:00.9]} 1... e5 {[%clk 0:02:59.4]} 2. Nf3 {[%clk 0:03:00.2]}
2... Nf6 {[%clk 0:02:58.9]} 3. Nxe5 {[%clk 0:02:58.5]} 3... d6 {[%clk 0:02:59]}
4. Nf3 {[%clk 0:02:58.6]} 4... Nxe4 {[%clk 0:02:58.2]} 5. d4 {[%clk 0:02:59.2]}
5... d5 {[%clk 0:02:57.6]} 6. Bd3 {[%clk 0:02:59.7]} 6... Nc6 {[%clk 0:02:53.2]}
7. O-O {[%clk 0:02:59.3]} 7... Be7 {[%clk 0:02:48.5]} 8. Re1 {[%clk 0:02:59.6]}
8... O-O {[%clk 0:02:48.2]} 9. c4 {[%clk 0:02:59.1]} 9... Nb4 {[%clk 0:02:36]}
10. Bxe4 {[%clk 0:02:42.2]} 10... dxe4 {[%clk 0:02:34.5]} 11. Rxe4 {[%clk
0:02:27.4]} 11... Bf5 {[%clk 0:02:32.5]} 12. Re2 {[%clk 0:02:27.6]} 12... Bg4
{[%clk 0:02:15]} 13. Nbd2 {[%clk 0:02:02.2]} 13... Bf6 {[%clk 0:02:11.8]} 14.
Qb3 {[%clk 0:01:56.9]} 14... Nc6 {[%clk 0:02:00.6]} 15. d5 {[%clk 0:01:54]}
15... Nd4 {[%clk 0:01:17.5]} 16. Nxd4 {[%clk 0:01:53]} 16... Bxd4 {[%clk
0:01:17.4]} 17. Re4 {[%clk 0:01:52.5]} 17... Qf6 {[%clk 0:01:16.1]} 18. Nf3
{[%clk 0:01:42.6]} 18... Rfe8 {[%clk 0:00:38.9]} 19. Bg5 {[%clk 0:01:29.9]}
19... Qf5 {[%clk 0:00:32.2]} 20. Rf4 {[%clk 0:01:07]} 20... Qg6 {[%clk
0:00:10.7]} 21. Rxg4 {[%clk 0:01:07.2]} 21... Bf6 {[%clk 0:00:09]} 22. h3 {[%clk
0:01:01.5]} 22... h5 {[%clk 0:00:09]} 23. Rg3 {[%clk 0:00:57.1]} 23... Be5
{[%clk 0:00:08.2]} 24. Nxe5 {[%clk 0:00:56.2]} 24... Rxe5 {[%clk 0:00:08.4]} 25.
Bf4 {[%clk 0:00:55.8]} 1-0

[Event "*** Titled Tuesday Blitz"]
[Site "Chess.com"]
[Date "2020.04.28"]
[Round "7"]
[White "Kotofeyca"]
[Black "Carnivoras"]
[Result "0-1"]
[WhiteElo "2442"]
[BlackElo "2640"]
[TimeControl "180+1"]
[EndTime "11:17:17 PDT"]
[Termination "Carnivoras won on time"]

1. d4 {[%clk 0:03:00.9]} 1... d5 {[%clk 0:02:59.6]} 2. c4 {[%clk 0:03:00.6]}
2... c6 {[%clk 0:02:58.9]} 3. cxd5 {[%clk 0:03:00.6]} 3... cxd5 {[%clk
0:02:58.5]} 4. Nc3 {[%clk 0:03:01.5]} 4... Nf6 {[%clk 0:02:58.1]} 5. Nf3 {[%clk
0:03:02.1]} 5... e6 {[%clk 0:02:58.5]} 6. Bf4 {[%clk 0:03:02.5]} 6... Bd6 {[%clk
0:02:58.3]} 7. Bg5 {[%clk 0:03:02.8]} 7... O-O {[%clk 0:02:58.1]} 8. e3 {[%clk
0:03:02.6]} 8... a6 {[%clk 0:02:58.4]} 9. Bd3 {[%clk 0:03:02.6]} 9... b5 {[%clk
0:02:58.5]} 10. a4 {[%clk 0:03:02.9]} 10... b4 {[%clk 0:02:58.1]} 11. Na2 {[%clk
0:03:03.5]} 11... Bb7 {[%clk 0:02:58.5]} 12. Nc1 {[%clk 0:03:03.5]} 12... Nbd7
{[%clk 0:02:58.7]} 13. Nb3 {[%clk 0:03:03.2]} 13... h6 {[%clk 0:02:58.4]} 14.
Bh4 {[%clk 0:03:02.4]} 14... Rc8 {[%clk 0:02:58]} 15. a5 {[%clk 0:02:58.1]}
15... Rc7 {[%clk 0:02:52.9]} 16. Qe2 {[%clk 0:02:57.9]} 16... Qa8 {[%clk
0:02:52.6]} 17. O-O {[%clk 0:02:55.2]} 17... Rfc8 {[%clk 0:02:52.2]} 18. Bg3
{[%clk 0:02:27.8]} 18... Bxg3 {[%clk 0:02:49.3]} 19. hxg3 {[%clk 0:02:28.7]}
19... Ne4 {[%clk 0:02:49.1]} 20. Nfd2 {[%clk 0:02:16.4]} 20... Ndf6 {[%clk
0:02:43.7]} 21. Nxe4 {[%clk 0:01:49.5]} 21... dxe4 {[%clk 0:02:41.9]} 22. Bb1
{[%clk 0:01:49]} 22... Nd7 {[%clk 0:02:36.1]} 23. Qd2 {[%clk 0:01:46.6]} 23...
Bd5 {[%clk 0:02:34.4]} 24. Qd1 {[%clk 0:01:15.2]} 24... Qb7 {[%clk 0:02:30.3]}
25. Nd2 {[%clk 0:01:03.4]} 25... Qb5 {[%clk 0:02:25.7]} 26. Nxe4 {[%clk
0:00:57.7]} 26... Rc1 {[%clk 0:01:55.8]} 27. Qxc1 {[%clk 0:00:52.8]} 27... Rxc1
{[%clk 0:01:55.5]} 28. Rxc1 {[%clk 0:00:53.7]} 28... Qe2 {[%clk 0:01:53.6]} 29.
Bc2 {[%clk 0:00:20.1]} 29... b3 {[%clk 0:01:45.6]} 30. Nc3 {[%clk 0:00:19.1]}
30... Qd2 {[%clk 0:01:39.8]} 31. Nxd5 {[%clk 0:00:19.1]} 31... bxc2 {[%clk
0:01:38.4]} 32. Nb6 {[%clk 0:00:17]} 32... Nf6 {[%clk 0:01:37.1]} 33. Nc4 {[%clk
0:00:16.2]} 33... Qe2 {[%clk 0:01:35.2]} 34. b3 {[%clk 0:00:14.6]} 34... Ne4
{[%clk 0:01:33.7]} 35. Rf1 {[%clk 0:00:15]} 35... Qd3 {[%clk 0:01:28.9]} 36.
Rac1 {[%clk 0:00:08.4]} 36... Qxb3 {[%clk 0:01:28]} 37. Ne5 {[%clk 0:00:08.2]}
37... Nc3 {[%clk 0:01:26.7]} 38. Rfe1 {[%clk 0:00:01.4]} 38... Na2 {[%clk
0:01:26.7]} 0-1

[Event "*** Titled Tuesday Blitz"]
[Site "Chess.com"]
[Date "2020.04.28"]
[Round "7"]
[White "szefru"]
[Black "EfM13"]
[Result "0-1"]
[WhiteElo "2128"]
[BlackElo "2264"]
[TimeControl "180+1"]
[EndTime "11:17:17 PDT"]
[Termination "EfM13 won by checkmate"]

1. e4 {[%clk 0:03:00.9]} 1... g6 {[%clk 0:02:59.8]} 2. d4 {[%clk 0:03:00.6]}
2... Bg7 {[%clk 0:03:00.4]} 3. Nc3 {[%clk 0:03:01]} 3... d6 {[%clk 0:03:00.9]}
4. Be3 {[%clk 0:03:00.9]} 4... Nf6 {[%clk 0:03:01.2]} 5. f3 {[%clk 0:03:01.4]}
5... O-O {[%clk 0:03:01]} 6. Qd2 {[%clk 0:03:01.9]} 6... Re8 {[%clk 0:03:01.2]}
7. O-O-O {[%clk 0:03:02.1]} 7... c6 {[%clk 0:03:00.6]} 8. g4 {[%clk 0:02:59.9]}
8... b5 {[%clk 0:02:59.7]} 9. Kb1 {[%clk 0:02:58.4]} 9... Nbd7 {[%clk
0:02:57.6]} 10. Bh6 {[%clk 0:02:58]} 10... Bh8 {[%clk 0:02:57]} 11. h4 {[%clk
0:02:57.7]} 11... e5 {[%clk 0:02:51.3]} 12. Nce2 {[%clk 0:02:53.8]} 12... Qe7
{[%clk 0:02:46.6]} 13. h5 {[%clk 0:02:53]} 13... Nb6 {[%clk 0:02:40.9]} 14. Ng3
{[%clk 0:02:40.4]} 14... exd4 {[%clk 0:02:40.1]} 15. hxg6 {[%clk 0:02:34.7]}
15... fxg6 {[%clk 0:02:37.5]} 16. Bg5 {[%clk 0:02:33]} 16... Qf7 {[%clk
0:02:28.6]} 17. Qh2 {[%clk 0:02:25.9]} 17... Be6 {[%clk 0:02:26.6]} 18. a3
{[%clk 0:02:15.7]} 18... a5 {[%clk 0:02:26]} 19. N1e2 {[%clk 0:02:12.2]} 19...
c5 {[%clk 0:02:05.3]} 20. Nf4 {[%clk 0:02:11.4]} 20... Ba2+ {[%clk 0:01:54.6]}
21. Ka1 {[%clk 0:02:09.8]} 21... Bc4 {[%clk 0:01:51.1]} 22. Bxc4 {[%clk
0:02:00.6]} 22... Nxc4 {[%clk 0:01:40.7]} 23. Bxf6 {[%clk 0:01:24.5]} 23... Bxf6
{[%clk 0:01:38.7]} 24. Nd5 {[%clk 0:01:24.7]} 24... Bh8 {[%clk 0:01:35.6]} 25.
f4 {[%clk 0:01:25.1]} 25... b4 {[%clk 0:01:29.7]} 26. a4 {[%clk 0:01:24.5]}
26... d3 {[%clk 0:01:28.3]} 27. c3 {[%clk 0:01:20.9]} 27... bxc3 {[%clk
0:01:25.5]} 28. Nxc3 {[%clk 0:01:21]} 28... Rab8 {[%clk 0:01:22.6]} 29. Nb5
{[%clk 0:00:45.3]} 29... Nxb2 {[%clk 0:01:15.9]} 30. e5 {[%clk 0:00:35.4]} 30...
Nxd1 {[%clk 0:01:15.3]} 31. Rxd1 {[%clk 0:00:36.3]} 31... dxe5 {[%clk
0:01:13.5]} 32. f5 {[%clk 0:00:27.4]} 32... e4+ {[%clk 0:01:11.4]} 33. Kb1
{[%clk 0:00:27.1]} 33... Qb3+ {[%clk 0:01:09.1]} 34. Kc1 {[%clk 0:00:27.4]}
34... Rxb5 {[%clk 0:00:58.8]} 35. axb5 {[%clk 0:00:25.3]} 35... Qc3+ {[%clk
0:00:58.6]} 36. Kb1 {[%clk 0:00:24.1]} 36... Qa1# {[%clk 0:00:58.4]} 0-1

[Event "*** Titled Tuesday Blitz"]
[Site "Chess.com"]
[Date "2020.04.28"]
[Round "7"]
[White "Joseph_Truelson"]
[Black "annacramling"]
[Result "1-0"]
[WhiteElo "2213"]
[BlackElo "1936"]
[TimeControl "180+1"]
[EndTime "11:17:21 PDT"]
[Termination "Joseph_Truelson won on time"]

1. c4 {[%clk 0:03:00.9]} 1... c5 {[%clk 0:02:57.7]} 2. Nf3 {[%clk 0:02:59.9]}
2... Nc6 {[%clk 0:02:54.5]} 3. g3 {[%clk 0:02:54.1]} 3... e5 {[%clk 0:02:51.9]}
4. Nc3 {[%clk 0:02:44.3]} 4... d6 {[%clk 0:02:49.1]} 5. Bg2 {[%clk 0:02:40.7]}
5... g6 {[%clk 0:02:49.4]} 6. O-O {[%clk 0:02:39]} 6... Bg7 {[%clk 0:02:50.1]}
7. a3 {[%clk 0:02:35.2]} 7... a5 {[%clk 0:02:48.7]} 8. Rb1 {[%clk 0:02:35]} 8...
Nge7 {[%clk 0:02:47.4]} 9. Nd5 {[%clk 0:02:32.9]} 9... Nxd5 {[%clk 0:01:56.6]}
10. cxd5 {[%clk 0:02:33.8]} 10... Ne7 {[%clk 0:01:56.9]} 11. e4 {[%clk
0:02:26.8]} 11... O-O {[%clk 0:01:54.9]} 12. b4 {[%clk 0:02:15.4]} 12... axb4
{[%clk 0:01:51.1]} 13. axb4 {[%clk 0:02:16.3]} 13... Qb6 {[%clk 0:01:38.5]} 14.
d3 {[%clk 0:02:08.6]} 14... Bd7 {[%clk 0:01:27]} 15. Be3 {[%clk 0:02:03.9]}
15... Qc7 {[%clk 0:01:05.8]} 16. bxc5 {[%clk 0:01:51.7]} 16... dxc5 {[%clk
0:01:05.5]} 17. Qb3 {[%clk 0:01:52.3]} 17... Rfb8 {[%clk 0:00:48.6]} 18. Rfc1
{[%clk 0:01:49.6]} 18... b6 {[%clk 0:00:48.1]} 19. d4 {[%clk 0:01:47.5]} 19...
exd4 {[%clk 0:00:37]} 20. Nxd4 {[%clk 0:01:48]} 20... Qd6 {[%clk 0:00:25.2]} 21.
Nb5 {[%clk 0:01:41.9]} 21... Bxb5 {[%clk 0:00:23.7]} 22. Qxb5 {[%clk 0:01:41.8]}
22... Ra5 {[%clk 0:00:21.5]} 23. Bxc5 {[%clk 0:01:27.6]} 23... Rxb5 {[%clk
0:00:11.7]} 24. Bxd6 {[%clk 0:01:26.7]} 24... Rxb1 {[%clk 0:00:11.5]} 25. Rxb1
{[%clk 0:01:27.6]} 25... Rc8 {[%clk 0:00:08]} 26. Bxe7 {[%clk 0:01:26.1]} 26...
Bf8 {[%clk 0:00:05.6]} 27. Bxf8 {[%clk 0:01:25.8]} 27... Kxf8 {[%clk 0:00:06]}
28. Rxb6 {[%clk 0:01:25.9]} 28... Rc1+ {[%clk 0:00:06.1]} 29. Bf1 {[%clk
0:01:26.4]} 29... Ke7 {[%clk 0:00:06.6]} 30. f4 {[%clk 0:01:23.7]} 30... h5
{[%clk 0:00:06.5]} 31. Kf2 {[%clk 0:01:23.1]} 31... Rc2+ {[%clk 0:00:05.8]} 32.
Be2 {[%clk 0:01:23.3]} 32... Rc3 {[%clk 0:00:02]} 33. e5 {[%clk 0:01:22.2]}
33... Rc2 {[%clk 0:00:02.2]} 34. Rb7+ {[%clk 0:01:22.3]} 34... Ke8 {[%clk
0:00:02]} 35. Ke3 {[%clk 0:01:20.9]} 35... Rc3+ {[%clk 0:00:01.7]} 36. Bd3
{[%clk 0:01:21]} 36... Rc1 {[%clk 0:00:01.4]} 37. d6 {[%clk 0:01:14.5]} 1-0

[Event "*** Titled Tuesday Blitz"]
[Site "Chess.com"]
[Date "2020.04.28"]
[Round "7"]
[White "CaspiIsrael"]
[Black "JSMastropiero"]
[Result "1/2-1/2"]
[WhiteElo "2619"]
[BlackElo "2434"]
[TimeControl "180+1"]
[EndTime "11:17:22 PDT"]
[Termination "Game drawn by repetition"]

1. e4 {[%clk 0:03:00.9]} 1... e5 {[%clk 0:02:58]} 2. Nf3 {[%clk 0:03:00.1]} 2...
Nc6 {[%clk 0:02:57.7]} 3. d4 {[%clk 0:03:00.3]} 3... exd4 {[%clk 0:02:57.1]} 4.
Nxd4 {[%clk 0:03:01.2]} 4... Bb4+ {[%clk 0:02:56.5]} 5. c3 {[%clk 0:03:01.1]}
5... Bc5 {[%clk 0:02:56.2]} 6. Be3 {[%clk 0:03:00.7]} 6... Bb6 {[%clk
0:02:56.1]} 7. Nf5 {[%clk 0:03:00.6]} 7... g6 {[%clk 0:02:49.1]} 8. Bxb6 {[%clk
0:03:00.5]} 8... axb6 {[%clk 0:02:48.5]} 9. Ne3 {[%clk 0:03:01]} 9... Nf6 {[%clk
0:02:48]} 10. f3 {[%clk 0:03:01.3]} 10... O-O {[%clk 0:02:43.6]} 11. c4 {[%clk
0:03:01.8]} 11... Qe7 {[%clk 0:02:42.2]} 12. Nc3 {[%clk 0:03:02.2]} 12... Qc5
{[%clk 0:02:27.2]} 13. Qd2 {[%clk 0:03:01.7]} 13... Nd4 {[%clk 0:02:15.9]} 14.
Bd3 {[%clk 0:02:59.5]} 14... Nb3 {[%clk 0:02:13]} 15. axb3 {[%clk 0:02:45.5]}
15... Rxa1+ {[%clk 0:02:10.7]} 16. Ncd1 {[%clk 0:02:46.4]} 16... d6 {[%clk
0:01:57.4]} 17. O-O {[%clk 0:02:46.2]} 17... Bd7 {[%clk 0:01:52.9]} 18. Kh1
{[%clk 0:02:45.6]} 18... Qh5 {[%clk 0:01:49]} 19. Nc2 {[%clk 0:02:43.4]} 19...
Raa8 {[%clk 0:01:47.7]} 20. Qc3 {[%clk 0:02:43.2]} 20... Qe5 {[%clk 0:01:44.8]}
21. Qd2 {[%clk 0:02:36.6]} 21... Rfe8 {[%clk 0:01:42.6]} 22. Nc3 {[%clk
0:02:36.6]} 22... Kg7 {[%clk 0:01:21.8]} 23. g4 {[%clk 0:02:34.5]} 23... g5
{[%clk 0:01:20.4]} 24. Ne3 {[%clk 0:02:28.2]} 24... c6 {[%clk 0:01:19.2]} 25.
Rg1 {[%clk 0:02:27.4]} 25... h6 {[%clk 0:01:17.1]} 26. h4 {[%clk 0:02:18.6]}
26... Nh7 {[%clk 0:01:15.4]} 27. Qf2 {[%clk 0:02:02.6]} 27... Kh8 {[%clk
0:01:14.1]} 28. Bb1 {[%clk 0:01:58.1]} 28... Rg8 {[%clk 0:01:13.5]} 29. Rd1
{[%clk 0:01:53.5]} 29... Rae8 {[%clk 0:01:12.7]} 30. h5 {[%clk 0:01:51.7]} 30...
Re6 {[%clk 0:01:08.9]} 31. Kg2 {[%clk 0:01:51.4]} 31... Rf6 {[%clk 0:01:09.1]}
32. Qd2 {[%clk 0:01:42.5]} 32... Nf8 {[%clk 0:01:07.6]} 33. Nf5 {[%clk
0:01:39.7]} 33... Bxf5 {[%clk 0:01:03.2]} 34. exf5 {[%clk 0:01:39.8]} 34... Nd7
{[%clk 0:00:57.6]} 35. Ne4 {[%clk 0:01:39.8]} 35... Rd8 {[%clk 0:00:47.5]} 36.
Nxd6 {[%clk 0:01:30.6]} 36... Kg7 {[%clk 0:00:37.2]} 37. Ne4 {[%clk 0:01:29.9]}
37... Nc5 {[%clk 0:00:25.1]} 38. Qxd8 {[%clk 0:01:26.8]} 38... Nxe4 {[%clk
0:00:25.6]} 39. Bxe4 {[%clk 0:01:26.3]} 39... Qxb2+ {[%clk 0:00:25.6]} 40. Rd2
{[%clk 0:01:25.7]} 40... Qxb3 {[%clk 0:00:25.9]} 41. Qe8 {[%clk 0:01:20.1]}
41... Qxc4 {[%clk 0:00:23.5]} 42. Rd8 {[%clk 0:01:18.4]} 42... Qe2+ {[%clk
0:00:23.4]} 43. Kg3 {[%clk 0:01:18.2]} 43... Qe1+ {[%clk 0:00:22.6]} 44. Kg2
{[%clk 0:01:18.2]} 44... Qe2+ {[%clk 0:00:22.8]} 45. Kg1 {[%clk 0:01:17.8]}
45... Qe1+ {[%clk 0:00:23.1]} 46. Kg2 {[%clk 0:01:18.1]} 46... Qe2+ {[%clk
0:00:23.4]} 1/2-1/2

[Event "*** Titled Tuesday Blitz"]
[Site "Chess.com"]
[Date "2020.04.28"]
[Round "7"]
[White "MeetGoku"]
[Black "JessPinkman"]
[Result "0-1"]
[WhiteElo "2331"]
[BlackElo "2484"]
[TimeControl "180+1"]
[EndTime "11:17:23 PDT"]
[Termination "JessPinkman won by resignation"]

1. e4 {[%clk 0:03:00.9]} 1... c5 {[%clk 0:03:00.3]} 2. Nf3 {[%clk 0:03:00.6]}
2... d6 {[%clk 0:03:01]} 3. d4 {[%clk 0:03:00.5]} 3... cxd4 {[%clk 0:03:01.9]}
4. Nxd4 {[%clk 0:03:01.4]} 4... Nf6 {[%clk 0:03:02.6]} 5. Nc3 {[%clk 0:03:01.8]}
5... a6 {[%clk 0:03:03.3]} 6. Bg5 {[%clk 0:03:01.5]} 6... Nbd7 {[%clk
0:03:02.5]} 7. Qe2 {[%clk 0:03:00.1]} 7... g6 {[%clk 0:03:00.5]} 8. O-O-O {[%clk
0:02:57.5]} 8... Bg7 {[%clk 0:03:00.7]} 9. f4 {[%clk 0:02:57.6]} 9... O-O {[%clk
0:03:00.5]} 10. e5 {[%clk 0:02:54.4]} 10... dxe5 {[%clk 0:03:00.4]} 11. fxe5
{[%clk 0:02:54.5]} 11... Qa5 {[%clk 0:03:00.5]} 12. Nf3 {[%clk 0:02:46.1]} 12...
Ng4 {[%clk 0:03:00]} 13. Bxe7 {[%clk 0:02:35.5]} 13... Re8 {[%clk 0:02:59.9]}
14. Bd6 {[%clk 0:02:35.6]} 14... Ndxe5 {[%clk 0:02:59.3]} 15. Rd5 {[%clk
0:02:29.1]} 15... b5 {[%clk 0:02:55.8]} 16. Nxe5 {[%clk 0:02:15.8]} 16... Nxe5
{[%clk 0:02:48]} 17. Bxe5 {[%clk 0:01:59.4]} 17... Bb7 {[%clk 0:02:20.9]} 18.
Qd2 {[%clk 0:00:22]} 18... Bxe5 {[%clk 0:01:52.1]} 19. Rd7 {[%clk 0:00:20.1]}
19... Bc6 {[%clk 0:01:42.7]} 20. Rd3 {[%clk 0:00:20.4]} 20... b4 {[%clk
0:01:36.6]} 21. Nb1 {[%clk 0:00:16.2]} 21... Qxa2 {[%clk 0:01:35.3]} 22. Rb3
{[%clk 0:00:14.7]} 22... Rad8 {[%clk 0:01:24.1]} 23. Bd3 {[%clk 0:00:14.1]}
23... a5 {[%clk 0:01:15.3]} 24. Re1 {[%clk 0:00:13.2]} 24... Ba4 {[%clk
0:00:54.5]} 25. Rxe5 {[%clk 0:00:10.4]} 25... Rxe5 {[%clk 0:00:53]} 26. Qf4
{[%clk 0:00:10.7]} 26... Re1+ {[%clk 0:00:47.2]} 0-1